[Event "*** Titled Tuesday Blitz"]
[Site "Chess.com"]
[Date "2020.11.10"]
[Round "4"]
[White "dominikaf"]
[Black "MartinMatthiesen"]
[Result "0-1"]
[WhiteElo "2209"]
[BlackElo "2417"]
[TimeControl "180+1"]
[EndTime "10:42:45 PST"]
[Termination "MartinMatthiesen won by checkmate"]

1. e4 {[%clk 0:03:00.9]} 1... c5 {[%clk 0:02:59.1]} 2. c4 {[%clk 0:03:00.6]}
2... Nc6 {[%clk 0:02:58.3]} 3. Nc3 {[%clk 0:03:00.6]} 3... g6 {[%clk 0:02:58.4]}
4. g3 {[%clk 0:02:59.9]} 4... Bg7 {[%clk 0:02:58.2]} 5. Bg2 {[%clk 0:03:00.2]}
5... e5 {[%clk 0:02:56.8]} 6. d3 {[%clk 0:03:00.3]} 6... Nge7 {[%clk 0:02:56.3]}
7. h3 {[%clk 0:03:00.8]} 7... d6 {[%clk 0:02:55.4]} 8. Nge2 {[%clk 0:03:01.4]}
8... O-O {[%clk 0:02:54.6]} 9. O-O {[%clk 0:03:01.6]} 9... f5 {[%clk 0:02:54.2]}
10. Be3 {[%clk 0:03:00.7]} 10... Nd4 {[%clk 0:02:48.2]} 11. f4 {[%clk
0:03:00.5]} 11... fxe4 {[%clk 0:02:38.1]} 12. dxe4 {[%clk 0:02:57.8]} 12... Be6
{[%clk 0:02:37.2]} 13. Nd5 {[%clk 0:02:58]} 13... Qd7 {[%clk 0:02:33.1]} 14. Kh2
{[%clk 0:02:57.1]} 14... Rf7 {[%clk 0:02:07.5]} 15. Rb1 {[%clk 0:02:31.8]} 15...
Raf8 {[%clk 0:02:04.5]} 16. b4 {[%clk 0:02:31.8]} 16... b6 {[%clk 0:02:03.9]}
17. bxc5 {[%clk 0:02:18]} 17... dxc5 {[%clk 0:02:02.4]} 18. Qd3 {[%clk
0:02:01.1]} 18... Nec6 {[%clk 0:01:59.4]} 19. a3 {[%clk 0:01:58.1]} 19... Kh8
{[%clk 0:01:53.5]} 20. fxe5 {[%clk 0:01:53.3]} 20... Nxe5 {[%clk 0:01:51.7]} 21.
Rxf7 {[%clk 0:01:46.1]} 21... Rxf7 {[%clk 0:01:47.6]} 22. Qd1 {[%clk 0:01:37.7]}
22... Nef3+ {[%clk 0:01:46.2]} 23. Kh1 {[%clk 0:01:31.3]} 23... Bxh3 {[%clk
0:01:45.9]} 24. Nxd4 {[%clk 0:01:17.4]} 24... Nxd4 {[%clk 0:01:43.1]} 25. Rb2
{[%clk 0:01:06.9]} 25... Qe6 {[%clk 0:01:22.5]} 26. Qd3 {[%clk 0:00:41.3]} 26...
Be5 {[%clk 0:01:00.7]} 27. Rf2 {[%clk 0:00:34.6]} 27... Rxf2 {[%clk 0:00:55.7]}
28. Bxf2 {[%clk 0:00:34.4]} 28... Qg4 {[%clk 0:00:51.6]} 29. Nf4 {[%clk
0:00:23.5]} 29... Bxg2+ {[%clk 0:00:41.4]} 30. Nxg2 {[%clk 0:00:15.7]} 30... Qe2
{[%clk 0:00:29.5]} 31. Qxe2 {[%clk 0:00:13.3]} 31... Nxe2 {[%clk 0:00:29.5]} 32.
g4 {[%clk 0:00:13.6]} 32... h6 {[%clk 0:00:23.1]} 33. Ne3 {[%clk 0:00:13.6]}
33... Kg7 {[%clk 0:00:20.8]} 34. Kg2 {[%clk 0:00:14]} 34... Nc3 {[%clk
0:00:19.1]} 35. Kf3 {[%clk 0:00:13.4]} 35... Nb1 {[%clk 0:00:19.2]} 36. a4
{[%clk 0:00:13.1]} 36... Nc3 {[%clk 0:00:19]} 37. a5 {[%clk 0:00:12.5]} 37...
bxa5 {[%clk 0:00:19.3]} 38. Be1 {[%clk 0:00:12.9]} 38... a4 {[%clk 0:00:18.8]}
39. Nc2 {[%clk 0:00:10.6]} 39... Nb1 {[%clk 0:00:17.8]} 40. Ke3 {[%clk 0:00:07]}
40... a3 {[%clk 0:00:18.1]} 41. Kd3 {[%clk 0:00:04.9]} 41... a2 {[%clk
0:00:18.2]} 42. Bd2 {[%clk 0:00:05.6]} 42... a1=Q {[%clk 0:00:17.6]} 43. Nxa1
{[%clk 0:00:06.5]} 43... Bxa1 {[%clk 0:00:17.5]} 44. Kc2 {[%clk 0:00:06.9]}
44... Nxd2 {[%clk 0:00:17.7]} 45. Kxd2 {[%clk 0:00:06.9]} 45... Bd4 {[%clk
0:00:18.6]} 46. Kd3 {[%clk 0:00:07.2]} 46... Kf6 {[%clk 0:00:18.7]} 47. Ke2
{[%clk 0:00:07.9]} 47... Ke5 {[%clk 0:00:19.6]} 48. Kf3 {[%clk 0:00:08.8]} 48...
a5 {[%clk 0:00:19.9]} 49. g5 {[%clk 0:00:09.3]} 49... hxg5 {[%clk 0:00:19.8]}
50. Kg4 {[%clk 0:00:09.9]} 50... Kxe4 {[%clk 0:00:20.2]} 51. Kxg5 {[%clk
0:00:10.3]} 51... Kd3 {[%clk 0:00:21.1]} 52. Kxg6 {[%clk 0:00:10.9]} 52... Kxc4
{[%clk 0:00:22]} 53. Kf5 {[%clk 0:00:11.8]} 53... a4 {[%clk 0:00:22.6]} 54. Ke4
{[%clk 0:00:12.3]} 54... a3 {[%clk 0:00:23.5]} 55. Kf3 {[%clk 0:00:13]} 55... a2
{[%clk 0:00:24.4]} 56. Ke2 {[%clk 0:00:13.9]} 56... a1=Q {[%clk 0:00:25]} 57.
Kd2 {[%clk 0:00:14.8]} 57... Qb2+ {[%clk 0:00:25.2]} 58. Kd1 {[%clk 0:00:15.1]}
58... Kd3 {[%clk 0:00:25]} 59. Ke1 {[%clk 0:00:15]} 59... Qe2# {[%clk
0:00:25.9]} 0-1

[Event "*** Titled Tuesday Blitz"]
[Site "Chess.com"]
[Date "2020.11.10"]
[Round "4"]
[White "Grieve72"]
[Black "redbaron8888"]
[Result "0-1"]
[WhiteElo "2365"]
[BlackElo "2543"]
[TimeControl "180+1"]
[EndTime "10:42:46 PST"]
[Termination "redbaron8888 won on time"]

1. d4 {[%clk 0:03:00.9]} 1... Nf6 {[%clk 0:02:59.4]} 2. Bg5 {[%clk 0:03:01.2]}
2... d5 {[%clk 0:02:59.3]} 3. Bxf6 {[%clk 0:02:59.9]} 3... exf6 {[%clk 0:03:00]}
4. e3 {[%clk 0:03:00.1]} 4... c6 {[%clk 0:02:58.6]} 5. Ne2 {[%clk 0:02:59.6]}
5... Bd6 {[%clk 0:02:58]} 6. g3 {[%clk 0:02:59.7]} 6... Bf5 {[%clk 0:02:53.4]}
7. Bg2 {[%clk 0:02:59.1]} 7... Nd7 {[%clk 0:02:53]} 8. Nd2 {[%clk 0:02:57.2]}
8... h5 {[%clk 0:02:45.2]} 9. h4 {[%clk 0:02:54.1]} 9... Qe7 {[%clk 0:02:39.4]}
10. c4 {[%clk 0:02:47.8]} 10... dxc4 {[%clk 0:02:38.5]} 11. Nxc4 {[%clk
0:02:48.7]} 11... Bb4+ {[%clk 0:02:30.9]} 12. Nc3 {[%clk 0:02:48.9]} 12... O-O-O
{[%clk 0:02:23.9]} 13. Qb3 {[%clk 0:02:29.2]} 13... Be6 {[%clk 0:02:06.2]} 14.
a3 {[%clk 0:02:11]} 14... Ba5 {[%clk 0:01:56.7]} 15. O-O {[%clk 0:01:52.4]}
15... Bc7 {[%clk 0:01:04.2]} 16. d5 {[%clk 0:01:41.2]} 16... Nc5 {[%clk
0:01:03.7]} 17. Qb4 {[%clk 0:01:14.1]} 17... Bxd5 {[%clk 0:00:50.9]} 18. Nxd5
{[%clk 0:01:09]} 18... cxd5 {[%clk 0:00:51.8]} 19. Na5 {[%clk 0:01:01.8]} 19...
Bxa5 {[%clk 0:00:40.3]} 20. Qxa5 {[%clk 0:00:59.2]} 20... Kb8 {[%clk 0:00:36]}
21. Rad1 {[%clk 0:00:51.3]} 21... b6 {[%clk 0:00:30.7]} 22. Qb4 {[%clk
0:00:42.6]} 22... Qe5 {[%clk 0:00:21.6]} 23. a4 {[%clk 0:00:34.6]} 23... Nb7
{[%clk 0:00:18.3]} 24. Rd4 {[%clk 0:00:32.3]} 24... Qd6 {[%clk 0:00:16.7]} 25.
Qb3 {[%clk 0:00:23.3]} 25... Nc5 {[%clk 0:00:14.9]} 26. Qb5 {[%clk 0:00:23.5]}
26... Qd7 {[%clk 0:00:13.7]} 27. Qb4 {[%clk 0:00:23.9]} 27... Na6 {[%clk
0:00:12.4]} 28. Qa3 {[%clk 0:00:22]} 28... Qd6 {[%clk 0:00:10.7]} 29. b4 {[%clk
0:00:20.6]} 29... Nc7 {[%clk 0:00:09.6]} 30. a5 {[%clk 0:00:18.1]} 30... Nb5
{[%clk 0:00:09.5]} 31. Qd3 {[%clk 0:00:11.4]} 31... Nxd4 {[%clk 0:00:09.6]} 32.
Qxd4 {[%clk 0:00:12.3]} 32... Rhe8 {[%clk 0:00:08.9]} 33. Ra1 {[%clk 0:00:09.2]}
33... Qe5 {[%clk 0:00:07.5]} 34. Qd1 {[%clk 0:00:07.5]} 34... Qc3 {[%clk
0:00:04.7]} 35. axb6 {[%clk 0:00:06.8]} 35... axb6 {[%clk 0:00:04.8]} 36. Qa4
{[%clk 0:00:05.6]} 36... Kc7 {[%clk 0:00:04.8]} 37. Qa7+ {[%clk 0:00:05.5]}
37... Kd6 {[%clk 0:00:05]} 38. Qxb6+ {[%clk 0:00:05.3]} 38... Qc6 {[%clk
0:00:04.1]} 39. Qd4 {[%clk 0:00:05]} 39... Qc4 {[%clk 0:00:03.9]} 40. Qb6+
{[%clk 0:00:03.3]} 40... Ke7 {[%clk 0:00:04]} 41. Rd1 {[%clk 0:00:02.5]} 41...
Kf8 {[%clk 0:00:03.5]} 42. Rd4 {[%clk 0:00:03]} 42... Qc1+ {[%clk 0:00:03.4]}
43. Kh2 {[%clk 0:00:03.5]} 43... Qc8 {[%clk 0:00:04.1]} 44. Bh3 {[%clk
0:00:02.4]} 44... Qc2 {[%clk 0:00:04.1]} 0-1

[Event "*** Titled Tuesday Blitz"]
[Site "Chess.com"]
[Date "2020.11.10"]
[Round "4"]
[White "Aleksandar-Topalov"]
[Black "mbojan"]
[Result "0-1"]
[WhiteElo "2359"]
[BlackElo "2656"]
[TimeControl "180+1"]
[EndTime "10:42:46 PST"]
[Termination "mbojan won by resignation"]

1. b3 {[%clk 0:02:56.8]} 1... g6 {[%clk 0:03:00.2]} 2. Bb2 {[%clk 0:02:56.3]}
2... Nf6 {[%clk 0:03:00.9]} 3. Bxf6 {[%clk 0:02:55.2]} 3... exf6 {[%clk
0:03:01.5]} 4. c4 {[%clk 0:02:55.5]} 4... d5 {[%clk 0:03:02.1]} 5. cxd5 {[%clk
0:02:54.9]} 5... Qxd5 {[%clk 0:03:02.9]} 6. Nc3 {[%clk 0:02:55.4]} 6... Qa5
{[%clk 0:03:03.6]} 7. a3 {[%clk 0:02:55.8]} 7... c6 {[%clk 0:03:04.1]} 8. e3
{[%clk 0:02:55.9]} 8... f5 {[%clk 0:03:03.3]} 9. Nge2 {[%clk 0:02:55.8]} 9...
Nd7 {[%clk 0:03:03.7]} 10. g3 {[%clk 0:02:56.1]} 10... Nf6 {[%clk 0:03:03.8]}
11. Bg2 {[%clk 0:02:55.5]} 11... Bd6 {[%clk 0:03:03.8]} 12. O-O {[%clk
0:02:53.5]} 12... O-O {[%clk 0:03:04]} 13. b4 {[%clk 0:02:54]} 13... Qd8 {[%clk
0:03:03.7]} 14. d4 {[%clk 0:02:54.6]} 14... Qe7 {[%clk 0:03:03.5]} 15. Rb1
{[%clk 0:02:54.5]} 15... a5 {[%clk 0:02:58]} 16. Qb3 {[%clk 0:02:53.5]} 16...
axb4 {[%clk 0:02:47.6]} 17. axb4 {[%clk 0:02:54.4]} 17... Be6 {[%clk 0:02:47.5]}
18. Qb2 {[%clk 0:02:53.8]} 18... Bc4 {[%clk 0:02:36]} 19. Rfe1 {[%clk
0:02:52.4]} 19... Rfc8 {[%clk 0:02:18]} 20. Nf4 {[%clk 0:02:45.8]} 20... Bxf4
{[%clk 0:02:06.6]} 21. gxf4 {[%clk 0:02:45.1]} 21... b5 {[%clk 0:02:05.4]} 22.
Ra1 {[%clk 0:02:40.3]} 22... Qd6 {[%clk 0:02:03.9]} 23. Ra3 {[%clk 0:02:31.8]}
23... Rxa3 {[%clk 0:01:53.8]} 24. Qxa3 {[%clk 0:02:31.3]} 24... Re8 {[%clk
0:01:53.7]} 25. Rb1 {[%clk 0:02:19.8]} 25... Ne4 {[%clk 0:01:45.2]} 26. Nxe4
{[%clk 0:02:04]} 26... fxe4 {[%clk 0:01:46.1]} 27. Bf1 {[%clk 0:02:03.3]} 27...
Bd5 {[%clk 0:01:41.8]} 28. Qa7 {[%clk 0:01:48.4]} 28... Kh8 {[%clk 0:01:38.2]}
29. Qc5 {[%clk 0:01:43.4]} 29... Qe6 {[%clk 0:01:37]} 30. Ra1 {[%clk 0:01:37.7]}
30... Rg8 {[%clk 0:01:34.5]} 31. Ra7 {[%clk 0:01:29.5]} 31... Qg4+ {[%clk
0:01:09.6]} 32. Bg2 {[%clk 0:01:27.9]} 32... Qd1+ {[%clk 0:01:07.1]} 33. Bf1
{[%clk 0:01:27.5]} 33... Qg4+ {[%clk 0:01:01.3]} 34. Bg2 {[%clk 0:01:27.2]}
34... g5 {[%clk 0:00:59.1]} 35. f5 {[%clk 0:01:27.4]} 35... Qxf5 {[%clk
0:00:54.1]} 36. Qe7 {[%clk 0:01:22.1]} 36... h6 {[%clk 0:00:51.5]} 37. Rd7
{[%clk 0:01:12.6]} 37... Qe6 {[%clk 0:00:48.9]} 38. Rc7 {[%clk 0:00:47]} 38...
Qxe7 {[%clk 0:00:46.2]} 39. Rxe7 {[%clk 0:00:47.2]} 39... f5 {[%clk 0:00:46.7]}
40. Bf1 {[%clk 0:00:36.8]} 40... Rg7 {[%clk 0:00:42.8]} 41. Re8+ {[%clk
0:00:36.2]} 41... Kh7 {[%clk 0:00:43]} 42. Rd8 {[%clk 0:00:36.6]} 42... Rf7
{[%clk 0:00:29.6]} 43. Bxb5 {[%clk 0:00:36.2]} 43... Rb7 {[%clk 0:00:25.4]} 44.
Ba6 {[%clk 0:00:28.8]} 44... Rxb4 {[%clk 0:00:25.4]} 45. Bc8 {[%clk 0:00:29.1]}
45... f4 {[%clk 0:00:25.9]} 46. Bf5+ {[%clk 0:00:26.1]} 46... Kg7 {[%clk
0:00:25.5]} 47. Kg2 {[%clk 0:00:24.2]} 47... Rb2 {[%clk 0:00:21]} 48. Rd6 {[%clk
0:00:21.7]} 48... fxe3 {[%clk 0:00:19.9]} 49. Rg6+ {[%clk 0:00:16.9]} 49... Kf7
{[%clk 0:00:19.9]} 50. Rxh6 {[%clk 0:00:11.8]} 50... exf2 {[%clk 0:00:15.6]} 0-1

[Event "*** Titled Tuesday Blitz"]
[Site "Chess.com"]
[Date "2020.11.10"]
[Round "4"]
[White "Mr_Heisenberg13"]
[Black "ENajer77"]
[Result "0-1"]
[WhiteElo "2491"]
[BlackElo "2681"]
[TimeControl "180+1"]
[EndTime "10:42:47 PST"]
[Termination "ENajer77 won on time"]

1. d4 {[%clk 0:03:00.9]} 1... Nf6 {[%clk 0:02:59.2]} 2. c4 {[%clk 0:03:00.8]}
2... e6 {[%clk 0:02:58.8]} 3. Nc3 {[%clk 0:03:00.8]} 3... Bb4 {[%clk 0:02:58.1]}
4. e3 {[%clk 0:03:00.8]} 4... O-O {[%clk 0:02:54]} 5. Bd2 {[%clk 0:03:00.9]}
5... b6 {[%clk 0:02:49.8]} 6. Bd3 {[%clk 0:02:58.3]} 6... Bb7 {[%clk 0:02:48.6]}
7. Nf3 {[%clk 0:02:56.3]} 7... Bxc3 {[%clk 0:02:47.2]} 8. Bxc3 {[%clk
0:02:55.2]} 8... Ne4 {[%clk 0:02:46.5]} 9. Rc1 {[%clk 0:02:50.5]} 9... d6 {[%clk
0:02:42]} 10. O-O {[%clk 0:02:47.7]} 10... Nd7 {[%clk 0:02:41.8]} 11. Nd2 {[%clk
0:02:42.4]} 11... Nxc3 {[%clk 0:02:39.6]} 12. Rxc3 {[%clk 0:02:41.9]} 12... Qe7
{[%clk 0:02:36.1]} 13. Be4 {[%clk 0:02:36.4]} 13... Bxe4 {[%clk 0:02:34.8]} 14.
Nxe4 {[%clk 0:02:37.3]} 14... Rfd8 {[%clk 0:02:34.8]} 15. Qa4 {[%clk 0:02:33.1]}
15... a5 {[%clk 0:02:18]} 16. Qc6 {[%clk 0:02:25.5]} 16... Rac8 {[%clk
0:02:16.1]} 17. a3 {[%clk 0:01:58.8]} 17... Nb8 {[%clk 0:00:50.8]} 18. Qa4
{[%clk 0:01:56.3]} 18... h6 {[%clk 0:00:48.3]} 19. b4 {[%clk 0:01:53.1]} 19...
axb4 {[%clk 0:00:46.6]} 20. axb4 {[%clk 0:01:54]} 20... Nd7 {[%clk 0:00:46.3]}
21. Qc6 {[%clk 0:01:49.3]} 21... e5 {[%clk 0:00:38.6]} 22. c5 {[%clk 0:01:24.5]}
22... exd4 {[%clk 0:00:35.1]} 23. exd4 {[%clk 0:01:13]} 23... dxc5 {[%clk
0:00:30.3]} 24. dxc5 {[%clk 0:01:08.5]} 24... Ne5 {[%clk 0:00:30]} 25. Qb7
{[%clk 0:00:59.6]} 25... Rb8 {[%clk 0:00:28.8]} 26. Qa6 {[%clk 0:00:58.3]} 26...
Rd4 {[%clk 0:00:26.2]} 27. cxb6 {[%clk 0:00:51.5]} 27... cxb6 {[%clk 0:00:21]}
28. Rc8+ {[%clk 0:00:47.8]} 28... Rxc8 {[%clk 0:00:20.8]} 29. Qxc8+ {[%clk
0:00:48.7]} 29... Kh7 {[%clk 0:00:17]} 30. Qc2 {[%clk 0:00:30.1]} 30... Nd3
{[%clk 0:00:09.5]} 31. f3 {[%clk 0:00:23.9]} 31... f5 {[%clk 0:00:09.1]} 32. Nf2
{[%clk 0:00:21.8]} 32... Qe3 {[%clk 0:00:08.5]} 33. h3 {[%clk 0:00:16.2]} 33...
g6 {[%clk 0:00:05.2]} 34. Qc7+ {[%clk 0:00:14.8]} 34... Kg8 {[%clk 0:00:03.1]}
35. Qc8+ {[%clk 0:00:11.6]} 35... Kf7 {[%clk 0:00:03]} 36. Qc7+ {[%clk
0:00:11.9]} 36... Kf6 {[%clk 0:00:03.3]} 37. Qc6+ {[%clk 0:00:04.9]} 37... Kg5
{[%clk 0:00:01.7]} 38. h4+ {[%clk 0:00:05.4]} 38... Kh5 {[%clk 0:00:01.8]} 39.
Qxb6 {[%clk 0:00:02.7]} 39... Nxf2 {[%clk 0:00:01.1]} 0-1

[Event "*** Titled Tuesday Blitz"]
[Site "Chess.com"]
[Date "2020.11.10"]
[Round "4"]
[White "tlomigtlis"]
[Black "Sofiia_Hryzlova"]
[Result "1-0"]
[WhiteElo "2602"]
[BlackElo "2300"]
[TimeControl "180+1"]
[EndTime "10:42:48 PST"]
[Termination "tlomigtlis won by resignation"]

1. d4 {[%clk 0:03:00.9]} 1... Nf6 {[%clk 0:02:57.7]} 2. c4 {[%clk 0:03:00.6]}
2... e6 {[%clk 0:02:56.9]} 3. Nc3 {[%clk 0:03:00.8]} 3... Bb4 {[%clk 0:02:56.7]}
4. Qc2 {[%clk 0:03:01.1]} 4... O-O {[%clk 0:02:55.5]} 5. a3 {[%clk 0:03:01.5]}
5... Bxc3+ {[%clk 0:02:55.5]} 6. Qxc3 {[%clk 0:03:02.4]} 6... b6 {[%clk
0:02:56.1]} 7. Bg5 {[%clk 0:03:02.3]} 7... Bb7 {[%clk 0:02:55.9]} 8. e3 {[%clk
0:03:02.8]} 8... h6 {[%clk 0:02:53.2]} 9. Bh4 {[%clk 0:03:02.6]} 9... d6 {[%clk
0:02:53.3]} 10. Ne2 {[%clk 0:03:01.2]} 10... Nbd7 {[%clk 0:02:52.2]} 11. Qc2
{[%clk 0:02:59.7]} 11... c5 {[%clk 0:02:47.9]} 12. Rd1 {[%clk 0:02:58.8]} 12...
Qc7 {[%clk 0:02:44.3]} 13. Nc3 {[%clk 0:02:57.3]} 13... a6 {[%clk 0:02:41.5]}
14. f3 {[%clk 0:02:51.4]} 14... Rfe8 {[%clk 0:02:39.9]} 15. Be2 {[%clk
0:02:49.7]} 15... d5 {[%clk 0:02:26.2]} 16. cxd5 {[%clk 0:02:44.5]} 16... exd5
{[%clk 0:02:25]} 17. Bf2 {[%clk 0:02:44.9]} 17... Re7 {[%clk 0:02:20.7]} 18. O-O
{[%clk 0:02:40.5]} 18... Rae8 {[%clk 0:02:19.9]} 19. dxc5 {[%clk 0:02:33]} 19...
bxc5 {[%clk 0:02:12.6]} 20. Rd2 {[%clk 0:02:21.3]} 20... Nb6 {[%clk 0:01:57.3]}
21. Rfd1 {[%clk 0:02:18]} 21... Bc8 {[%clk 0:01:53.1]} 22. Na4 {[%clk
0:02:11.1]} 22... Nxa4 {[%clk 0:01:46.7]} 23. Qxa4 {[%clk 0:02:12]} 23... d4
{[%clk 0:01:42.4]} 24. e4 {[%clk 0:02:06]} 24... a5 {[%clk 0:01:38.7]} 25. b4
{[%clk 0:02:04.6]} 25... axb4 {[%clk 0:01:37.7]} 26. axb4 {[%clk 0:02:05.5]}
26... cxb4 {[%clk 0:01:35.3]} 27. Qxb4 {[%clk 0:02:04]} 27... d3 {[%clk
0:00:55.9]} 28. Bxd3 {[%clk 0:01:55.8]} 28... Re6 {[%clk 0:00:37.7]} 29. g3
{[%clk 0:01:44.5]} 29... Bd7 {[%clk 0:00:36.6]} 30. Kg2 {[%clk 0:01:43.6]} 30...
Bc6 {[%clk 0:00:36.1]} 31. Rc2 {[%clk 0:01:41.4]} 31... Qe5 {[%clk 0:00:35.2]}
32. Rc5 {[%clk 0:01:35.4]} 32... Qd6 {[%clk 0:00:30.1]} 33. Qc3 {[%clk 0:01:32]}
33... Nd7 {[%clk 0:00:29.3]} 34. Ra5 {[%clk 0:01:19.8]} 34... Ne5 {[%clk
0:00:28.3]} 35. Be2 {[%clk 0:01:16.9]} 35... Qc7 {[%clk 0:00:26.7]} 36. Rc5
{[%clk 0:01:15.1]} 36... Qb7 {[%clk 0:00:25.4]} 37. Rc1 {[%clk 0:01:13.9]} 37...
Bxe4 {[%clk 0:00:20.3]} 38. fxe4 {[%clk 0:01:06]} 38... Qxe4+ {[%clk 0:00:20.3]}
39. Bf3 {[%clk 0:01:06.3]} 39... Qg6 {[%clk 0:00:14.3]} 40. Rc8 {[%clk
0:00:58.7]} 40... Kh7 {[%clk 0:00:10.1]} 41. Rxe8 {[%clk 0:00:58.1]} 41... Rxe8
{[%clk 0:00:10.4]} 42. Re1 {[%clk 0:00:57.9]} 42... f6 {[%clk 0:00:09.7]} 43.
Be4 {[%clk 0:00:58]} 43... f5 {[%clk 0:00:09.5]} 44. Bc6 {[%clk 0:00:53.9]}
44... Qd6 {[%clk 0:00:08]} 45. Bxe8 {[%clk 0:00:51.6]} 45... Qd5+ {[%clk
0:00:08.4]} 46. Kh3 {[%clk 0:00:45.2]} 46... Nf3 {[%clk 0:00:07.9]} 47. Be3
{[%clk 0:00:18.8]} 47... g5 {[%clk 0:00:03.8]} 48. Qc7+ {[%clk 0:00:17.2]} 48...
Kg8 {[%clk 0:00:02.6]} 49. Bf7+ {[%clk 0:00:16.5]} 49... Qxf7 {[%clk 0:00:02.7]}
50. Qxf7+ {[%clk 0:00:17.4]} 50... Kxf7 {[%clk 0:00:03.6]} 51. Rf1 {[%clk
0:00:17.5]} 51... g4+ {[%clk 0:00:03.8]} 52. Kg2 {[%clk 0:00:17.9]} 52... h5
{[%clk 0:00:04]} 53. Rxf3 {[%clk 0:00:16.9]} 53... gxf3+ {[%clk 0:00:04.1]} 54.
Kxf3 {[%clk 0:00:17.8]} 1-0

[Event "*** Titled Tuesday Blitz"]
[Site "Chess.com"]
[Date "2020.11.10"]
[Round "4"]
[White "Crazy_girl99"]
[Black "ural58"]
[Result "0-1"]
[WhiteElo "2518"]
[BlackElo "2370"]
[TimeControl "180+1"]
[EndTime "10:42:50 PST"]
[Termination "ural58 won by resignation"]

1. e4 {[%clk 0:02:59]} 1... d5 {[%clk 0:02:54.4]} 2. exd5 {[%clk 0:02:58.8]}
2... Qxd5 {[%clk 0:02:51.7]} 3. Nc3 {[%clk 0:02:58.6]} 3... Qa5 {[%clk
0:02:50.1]} 4. d4 {[%clk 0:02:58.2]} 4... Nf6 {[%clk 0:02:48.3]} 5. Bd2 {[%clk
0:02:57.4]} 5... Bg4 {[%clk 0:02:46.9]} 6. f3 {[%clk 0:02:54.4]} 6... Bd7 {[%clk
0:02:46.5]} 7. Bc4 {[%clk 0:02:53]} 7... Qb6 {[%clk 0:02:44]} 8. Nge2 {[%clk
0:02:52]} 8... e6 {[%clk 0:02:41.3]} 9. O-O {[%clk 0:02:46]} 9... Be7 {[%clk
0:02:41.3]} 10. Kh1 {[%clk 0:02:45.4]} 10... O-O {[%clk 0:02:40.4]} 11. Ne4
{[%clk 0:02:42.3]} 11... Nc6 {[%clk 0:02:28.1]} 12. c3 {[%clk 0:02:38.7]} 12...
Na5 {[%clk 0:02:17.1]} 13. Bd3 {[%clk 0:02:35.2]} 13... Bb5 {[%clk 0:02:12.1]}
14. Bxb5 {[%clk 0:02:24.4]} 14... Qxb5 {[%clk 0:02:11.8]} 15. a4 {[%clk
0:02:24.2]} 15... Qb3 {[%clk 0:02:08.6]} 16. Qe1 {[%clk 0:02:14.8]} 16... Nc4
{[%clk 0:02:01.7]} 17. Bc1 {[%clk 0:02:13.3]} 17... Rad8 {[%clk 0:01:55.2]} 18.
Qg3 {[%clk 0:02:11.2]} 18... Rfe8 {[%clk 0:01:34.6]} 19. Nf4 {[%clk 0:02:04.6]}
19... Nxe4 {[%clk 0:01:30.5]} 20. fxe4 {[%clk 0:02:05.5]} 20... Qc2 {[%clk
0:01:14.9]} 21. e5 {[%clk 0:01:34.1]} 21... c5 {[%clk 0:01:06.2]} 22. Nh5 {[%clk
0:01:21.3]} 22... Qg6 {[%clk 0:01:05.8]} 23. Qf3 {[%clk 0:00:58.3]} 23... cxd4
{[%clk 0:01:00.1]} 24. Nf4 {[%clk 0:00:58.1]} 24... Qf5 {[%clk 0:00:51.8]} 25.
g4 {[%clk 0:00:57.5]} 25... Qxe5 {[%clk 0:00:43.5]} 26. Nd3 {[%clk 0:00:49.7]}
26... Qd5 {[%clk 0:00:41.4]} 27. Qxd5 {[%clk 0:00:40.5]} 27... exd5 {[%clk
0:00:42.3]} 28. cxd4 {[%clk 0:00:38.8]} 28... Bf6 {[%clk 0:00:35.3]} 29. Bf4
{[%clk 0:00:23.7]} 29... Bxd4 {[%clk 0:00:33.3]} 30. Rad1 {[%clk 0:00:20.5]}
30... Nxb2 {[%clk 0:00:32.7]} 31. Nxb2 {[%clk 0:00:20.5]} 31... Bxb2 {[%clk
0:00:33.6]} 32. Rb1 {[%clk 0:00:20.9]} 32... Bf6 {[%clk 0:00:30.4]} 33. Rxb7
{[%clk 0:00:20.4]} 33... a5 {[%clk 0:00:30.4]} 34. Rb5 {[%clk 0:00:20]} 34...
Bc3 {[%clk 0:00:29.9]} 35. Bc7 {[%clk 0:00:19.4]} 35... Ra8 {[%clk 0:00:28.4]}
36. Rd1 {[%clk 0:00:18.4]} 36... d4 {[%clk 0:00:28.2]} 37. Bb6 {[%clk
0:00:18.1]} 37... Reb8 {[%clk 0:00:26.8]} 38. Kg2 {[%clk 0:00:15.5]} 38... f6
{[%clk 0:00:25.6]} 39. Kf3 {[%clk 0:00:15.2]} 39... Kf7 {[%clk 0:00:25.8]} 40.
Bxd4 {[%clk 0:00:14.6]} 40... Rxb5 {[%clk 0:00:24.5]} 41. axb5 {[%clk
0:00:15.5]} 41... Bxd4 {[%clk 0:00:24.2]} 42. Rxd4 {[%clk 0:00:15.4]} 42... a4
{[%clk 0:00:25.1]} 43. Rd2 {[%clk 0:00:14.7]} 43... Ke6 {[%clk 0:00:24.5]} 44.
Ke4 {[%clk 0:00:14.1]} 44... a3 {[%clk 0:00:23.9]} 45. b6 {[%clk 0:00:14.2]}
45... a2 {[%clk 0:00:21.9]} 46. b7 {[%clk 0:00:12.1]} 46... a1=Q {[%clk
0:00:20.5]} 47. bxa8=Q {[%clk 0:00:10.2]} 47... Qxa8+ {[%clk 0:00:20.4]} 48. Ke3
{[%clk 0:00:09.8]} 48... Qa3+ {[%clk 0:00:19.6]} 49. Ke2 {[%clk 0:00:09.3]}
49... Qh3 {[%clk 0:00:19.1]} 50. Kd1 {[%clk 0:00:08.2]} 50... Qxg4+ {[%clk
0:00:18.9]} 51. Re2+ {[%clk 0:00:09.1]} 51... Qxe2+ {[%clk 0:00:18.8]} 52. Kxe2
{[%clk 0:00:09.4]} 52... Kf5 {[%clk 0:00:19.7]} 53. Kf3 {[%clk 0:00:10.3]} 53...
Kg5 {[%clk 0:00:20.1]} 54. h3 {[%clk 0:00:10.9]} 54... f5 {[%clk 0:00:20.4]} 55.
Kg2 {[%clk 0:00:11.7]} 55... g6 {[%clk 0:00:20.8]} 56. Kg3 {[%clk 0:00:12.6]}
56... Kf6 {[%clk 0:00:20.9]} 57. h4 {[%clk 0:00:13.4]} 57... g5 {[%clk
0:00:21.8]} 58. hxg5+ {[%clk 0:00:13.3]} 58... Kxg5 {[%clk 0:00:22.7]} 59. Kf3
{[%clk 0:00:14.1]} 59... f4 {[%clk 0:00:23.2]} 60. Kf2 {[%clk 0:00:14.3]} 60...
Kg4 {[%clk 0:00:24.1]} 61. Kg2 {[%clk 0:00:15.2]} 61... f3+ {[%clk 0:00:24.8]}
62. Kf2 {[%clk 0:00:15.7]} 62... Kf4 {[%clk 0:00:25.5]} 63. Kg1 {[%clk
0:00:15.8]} 63... Kg3 {[%clk 0:00:26.4]} 64. Kf1 {[%clk 0:00:16.3]} 64... f2
{[%clk 0:00:26.8]} 0-1